fUSD/lending_fUSD_20240201
["ID","MTS","AMOUNT","RATE_DAILY","PERIOD"]
[313146135,1706807993683,235.89308219,0.00022,2]
[313146138,1706808087872,500.0,0.00021753,2]
[313146139,1706808095127,-260.93542581,0.00022561,2]
[313146140,1706808095150,-338.11095919,0.00022561,2]
[313146141,1706808095173,-712.68,0.00022561,2]
[313146142,1706808095196,-688.273615,0.00022561,2]
[313146143,1706808095813,-33.596385,0.00022561,2]
[313146144,1706808095835,-727.57,0.00022561,2]
[313146145,1706808095860,-715.96,0.00022561,2]
[313146146,1706808095882,-522.873615,0.00022562,2]
[313146147,1706808096213,-190.206385,0.00022562,2]
[313146148,1706808096235,-725.73,0.00022562,2]
[313146149,1706808096262,-725.81,0.00022572,2]
[313146150,1706808096283,-300.0,0.00022597,2]
[313146151,1706808096306,-58.253615,0.00022661,2]
[313146152,1706808096585,-1080.43497196,0.00022661,2]
[313146153,1706808096610,-737.65,0.0002267,2]
[313146154,1706808096632,-181.91502804,0.00022693,2]
[313146155,1706808096960,-536.15497196,0.00022693,2]
[313146156,1706808096980,-300.0,0.00022694,2]
[313146157,1706808097003,-728.49,0.00022694,2]
[313146158,1706808097025,-435.35502804,0.00022695,2]
[313146159,1706808097442,-279.56497196,0.00022695,2]
[313146160,1706808097464,-710.73,0.00022696,2]
[313146161,1706808097485,-150.99,0.00022696,2]
[313146162,1706808097508,-688.85,0.00022696,2]
[313146163,1706808097531,-163.88556683,0.00022698,2]
[313146164,1706808128394,5.97946121,0.00021852,2]
[313146165,1706808128415,2000.0,0.00021852,2]
[313146166,1706808128436,95.47053879,0.00021852,2]
[313146167,1706808140657,155.45,0.00021861,2]
[313146168,1706808146856,191.73989941,0.00022599,2]
[313146169,1706808166305,1557.3395618,0.000226,2]
[313146170,1706808166327,2000.0,0.000226,2]
[313146171,1706808172895,840.0,0.00021839,2]
[313146172,1706808179879,2000.0,0.00021839,2]
[313146174,1706808194688,151.54006455,0.00022,2]
[313146175,1706808197463,200.0,0.00021835,2]
[313146176,1706808198271,353.46,0.00022,2]
[313146177,1706808210267,162.07,0.00021831,2]
[313146178,1706808221981,250.0,0.00021831,2]
[313146182,1706808275186,248.17,0.00019936,2]
[313146183,1706808275510,248.17,0.00022199,2]
[313146184,1706808321420,448.08813739,0.000225,2]
[313146185,1706808340427,925.75,0.00021783,2]
[313146186,1706808345144,150.0,0.00021786,2]
[313146187,1706808354488,158.69725099,0.000225,2]
[313146188,1706808365956,184.24,0.00021941,2]
[313146189,1706808366188,184.24,0.00022001,2]
[313146190,1706808366421,184.24,0.00022062,2]
[313146191,1706808366640,184.24,0.00022122,2]
[313146192,1706808366877,184.24,0.00022182,2]
[313146193,1706808367121,184.24,0.00022242,2]
[313146194,1706808367371,184.24,0.00022302,2]
[313146195,1706808367587,184.24,0.00022362,2]
[313146196,1706808367792,184.24,0.00022422,2]
[313146197,1706808368016,184.24,0.00022483,2]
[313146199,1706808438661,509.21,0.0002175,2]
[313146200,1706808486534,-1375.46820516,0.00022533,2]
[313146201,1706808486559,-2145.46767011,0.00022534,2]
[313146202,1706808486588,-374.89403808,0.00022536,2]
[313146203,1706808486612,-300.0,0.00022539,2]
[313146204,1706808486636,-150.0,0.00022539,2]
[313146205,1706808486659,-1367.4898741,0.00022539,2]
[313146206,1706808497095,408.13209907,0.00022539,2]
[313146208,1706808500622,1511.5177,0.00022441,2]
[313146209,1706808501954,1374.16494392,0.00022539,2]
[313146210,1706808503335,1367.4898741,0.00022539,2]
[313146211,1706808503893,360.84411584,0.00022539,2]
[313146212,1706808505060,413.71344189,0.00022539,2]
[313146213,1706808520708,28850.81803773,0.00022441,2]
[313146214,1706808520731,5000.0,0.00022441,2]
[313146215,1706808520752,1008.0,0.00022441,2]
[313146216,1706808520773,1624.22646227,0.00022441,2]
[313146219,1706808601574,2000.0,0.00021752,2]
[313146235,1706808631552,-1367.4898741,0.00022539,2]
[313146236,1706808631561,-5408.17431025,0.0002254,2]
[313146237,1706808631609,-28049.86883489,0.0002254,2]
[313146238,1706808631619,-184.24,0.00022543,2]
[313146239,1706808631629,-1000.0,0.00022599,2]
[313146240,1706808631638,-826.7646,0.00022599,2]
[313146241,1706808631648,-2511.13224161,0.000226,2]
[313146242,1706808631658,-158.69725096,0.000226,2]
[313146243,1706808631667,-184.24,0.00022603,2]
[313146244,1706808631676,-206.508,0.00022659,2]
[313146245,1706808631686,-424.94,0.00022659,2]
[313146246,1706808631695,-184.24,0.00022663,2]
[313146247,1706808631704,-22415.38,0.00022663,2]
[313146248,1706808631714,-179.99,0.00022663,5]
[313146249,1706808631727,-2310.2468,0.00022699,2]
[313146250,1706808631740,-158.69725096,0.000227,2]
[313146251,1706808631749,-297.28761012,0.00022715,2]
[313146252,1706808631759,-184.24,0.00022723,2]
[313146253,1706808631768,-727.56,0.00022737,2]
[313146254,1706808631778,-155.22052307,0.00022757,2]
[313146255,1706808631787,-210.48403034,0.00022758,2]
[313146257,1706808631797,-7810.63063047,0.00022758,2]
[313146259,1706808631808,-98608.07808698,0.00022759,2]
[313146261,1706808631820,-565.86670364,0.00022759,2]
[313146264,1706808631836,-15345.899,0.00022759,2]
[313146266,1706808631848,-1499.715,0.00022759,2]
[313146270,1706808631860,-7098.76328458,0.00022759,2]
[313146294,1706808632177,-980.65191279,0.00022759,2]
[313146296,1706808632189,-101751.36923768,0.00022759,2]
[313146315,1706808637737,-1669.89312,0.00022759,2]
[313146316,1706808637749,-369.0296654,0.00022759,2]
[313146317,1706808637853,-369.77723094,0.00022759,2]
[313146318,1706808637915,-32246.20311344,0.00022759,2]
[313146319,1706808637924,-12863.07688656,0.0002276,2]
[313146320,1706808638033,-8893.88118831,0.0002276,2]
[313146321,1706808638049,-280.0,0.0002276,2]
[313146322,1706808638063,-668.50793059,0.0002276,2]
[313146323,1706808638075,-6267.08146283,0.0002276,2]
[313146324,1706808638086,-347.15235593,0.0002276,2]
[313146325,1706808638098,-12945.33781129,0.0002276,2]
[313146339,1706808640168,-4749.27959981,0.0002276,2]
[313146342,1706808641021,-929.13468914,0.0002276,2]
[313146381,1706808643687,-858.8244,0.0002276,2]
[313146382,1706808643698,-4801.01390168,0.0002276,2]
[313146383,1706808643714,-646.47648549,0.0002276,2]
[313146384,1706808643726,-12052.0385351,0.0002276,2]
[313146385,1706808643735,-297.28761012,0.00022761,2]
[313146386,1706808643744,-698.41035478,0.00022764,2]
[313146387,1706808643821,-14.74964522,0.00022764,2]
[313146388,1706808643830,-281.78051796,0.00022767,2]
[313146389,1706808643839,-499.99,0.0002277,2]
[313146390,1706808643849,-1825.71886179,0.0002277,2]
[313146391,1706808643860,-5014.21594889,0.0002277,2]
[313146392,1706808643876,-4540.0,0.0002277,2]
[313146393,1706808643887,-9152.14594818,0.0002277,2]
[313146394,1706808643899,-26016.91924114,0.0002277,2]
[313146395,1706808643908,-15838.63471299,0.0002277,2]
[313146396,1706808643919,-1394.73773573,0.0002277,2]
[313146397,1706808643928,-317.49900821,0.00022774,2]
[313146398,1706808643938,-734.01,0.00022777,2]
[313146399,1706808643947,-184.24,0.00022783,2]
[313146400,1706808643957,-200.0,0.00022797,2]
[313146401,1706808643966,-200.0,0.00022797,2]
[313146402,1706808643975,-200.0,0.00022797,2]
[313146403,1706808643985,-156.96695842,0.00022797,2]
[313146404,1706808643994,-157.25944456,0.00022797,2]
[313146405,1706808644004,-156.61444758,0.00022797,2]
[313146406,1706808644013,-156.67382544,0.00022797,2]
[313146407,1706808644022,-274.0205093,0.00022797,2]
[313146408,1706808644031,-245.35284397,0.00022797,2]
[313146409,1706808644041,-195.88852614,0.00022797,2]
[313146410,1706808644050,-158.23937767,0.00022797,2]
[313146411,1706808644060,-244.82534313,0.00022797,2]
[313146412,1706808644069,-233.42707403,0.00022797,2]
[313146413,1706808644077,-159.76048776,0.00022797,2]
[313146414,1706808644086,-400.0,0.00022797,2]
[313146415,1706808644095,-594.65817432,0.00022797,2]
[313146416,1706808644105,-308.40575502,0.00022797,2]
[313146417,1706808644114,-721.79551822,0.00022797,2]
[313146418,1706808644123,-292.70291374,0.00022797,2]
[313146419,1706808644132,-171.28307866,0.00022797,2]
[313146420,1706808644141,-343.64376073,0.00022797,2]
[313146421,1706808644150,-235.4251833,0.00022797,2]
[313146422,1706808644159,-1399.55391951,0.00022797,2]
[313146423,1706808644168,-319.46379714,0.00022797,2]
[313146424,1706808644178,-1070.3857305,0.00022797,2]
[313146425,1706808644186,-313.5325998,0.00022797,2]
[313146426,1706808644195,-366.02470053,0.00022797,2]
[313146427,1706808644204,-163.20634096,0.00022797,2]
[313146428,1706808644214,-156.13081678,0.00022797,2]
[313146429,1706808644222,-155.0,0.00022797,2]
[313146430,1706808644231,-302.84837453,0.00022797,2]
[313146431,1706808644241,-308.5632678,0.00022797,2]
[313146432,1706808644250,-280.07934432,0.00022797,2]
[313146433,1706808644259,-797.30628427,0.00022797,2]
[313146434,1706808644268,-201.46673912,0.00022797,2]
[313146435,1706808644277,-253.49547449,0.00022797,2]
[313146436,1706808644286,-155.52012042,0.00022797,2]
[313146437,1706808644295,-157.16716868,0.00022797,2]
[313146438,1706808644304,-586.06208345,0.00022797,2]
[313146439,1706808644316,-155.72811988,0.00022797,2]
[313146440,1706808644325,-155.83298268,0.00022797,2]
[313146441,1706808644334,-311.59150887,0.00022797,2]
[313146442,1706808644344,-434.36220237,0.00022797,2]
[313146443,1706808644354,-296.44165808,0.00022797,2]
[313146444,1706808644363,-337.96118982,0.00022797,2]
[313146445,1706808644372,-175.53142428,0.00022797,2]
[313146446,1706808644381,-2907.57194217,0.00022797,2]
[313146447,1706808644390,-156.98966679,0.00022797,2]
[313146448,1706808644400,-270.45000372,0.00022797,2]
[313146449,1706808644410,-896.60943409,0.00022797,2]
[313146450,1706808644419,-354.42047342,0.00022797,2]
[313146451,1706808644429,-285.95951761,0.00022797,2]
[313146452,1706808644438,-2791.07605815,0.00022797,2]
[313146453,1706808644448,-155.25034057,0.00022797,2]
[313146454,1706808644458,-248.1413861,0.00022797,2]
[313146455,1706808644467,-1815.4533037,0.00022797,2]
[313146456,1706808644477,-312.68730673,0.00022797,2]
[313146457,1706808644488,-156.45061143,0.00022797,2]
[313146458,1706808644497,-375.98637531,0.00022797,2]
[313146459,1706808644507,-1418.81878163,0.00022797,2]
[313146460,1706808644516,-2605.00006575,0.00022797,2]
[313146461,1706808644525,-306.0102269,0.00022797,2]
[313146462,1706808644534,-758.32534828,0.00022797,2]
[313146463,1706808644544,-261.78419109,0.00022797,2]
[313146464,1706808644553,-310.85441353,0.00022797,2]
[313146465,1706808644564,-4117.11213102,0.00022798,2]
[313146466,1706808644573,-1000.0,0.00022798,2]
[313146467,1706808644583,-1601.33397436,0.000228,2]
[313146468,1706808644724,-39032.74412564,0.000228,2]
[313146469,1706808644733,-158.69725096,0.000228,2]
[313146470,1706808644743,-297.28761012,0.00022808,2]
[313146471,1706808644752,-800.0,0.00022815,2]
[313146472,1706808644762,-800.0,0.00022816,2]
[313146473,1706808644771,-200.0,0.00022816,2]
[313146474,1706808644782,-800.0,0.00022816,2]
[313146475,1706808644792,-800.0,0.00022816,2]
[313146476,1706808644801,-200.0,0.00022816,2]
[313146477,1706808644811,-486.95588542,0.00022831,2]
[313146478,1706808644820,-184.24,0.00022844,2]
[313146479,1706808644830,-297.28761012,0.00022854,2]
[313146480,1706808644839,-486.95588542,0.00022866,2]
[313146481,1706808644848,-500.0,0.00022882,2]
[313146482,1706808644857,-1000.0,0.00022885,2]
[313146483,1706808644866,-1000.0,0.00022885,2]
[313146484,1706808644876,-1000.0,0.00022885,2]
[313146485,1706808644885,-1000.0,0.00022885,2]
[313146486,1706808644895,-1000.0,0.00022885,2]
[313146487,1706808644904,-1000.0,0.00022885,2]
[313146488,1706808644913,-1000.0,0.00022885,2]
[313146489,1706808644923,-1000.0,0.00022885,2]
[313146490,1706808644932,-180.3842,0.00022885,2]
[313146491,1706808644941,-374.94226822,0.0002289,2]
[313146492,1706808644950,-500.0,0.00022891,2]
[313146493,1706808644959,-10452.73974334,0.000229,2]
[313146494,1706808644968,-500.0,0.000229,2]
[313146495,1706808644977,-432.35163781,0.000229,2]
[313146496,1706808644987,-157.25879482,0.000229,2]
[313146497,1706808644995,-297.28761012,0.000229,2]
[313146498,1706808645005,-158.69725096,0.000229,2]
[313146499,1706808645014,-5000.0,0.000229,2]
[313146500,1706808645024,-154.01507734,0.000229,2]
[313146501,1706808645033,-486.95588542,0.000229,2]
[313146502,1706808645043,-423.94434941,0.000229,2]
[313146503,1706808645052,-41855.55395413,0.000229,2]
[313146504,1706808645062,-362.68395535,0.000229,6]
[313146505,1706808645071,-1325.84312464,0.000229,2]
[313146506,1706808645081,-173.13503997,0.000229,2]
[313146507,1706808645090,-9066.1214518,0.000229,2]
[313146508,1706808645099,-263.8209097,0.000229,2]
[313146509,1706808645242,-215.17480324,0.000229,2]
[313146510,1706808645252,-5083.72636756,0.000229,2]
[313146511,1706808645262,-182.91550859,0.000229,2]
[313146512,1706808645272,-184.24,0.00022904,2]
[313146513,1706808645281,-184.24,0.00022964,2]
[313146514,1706808645290,-374.94226822,0.0002299,2]
[313146515,1706808645300,-374.94226822,0.0002299,2]
[313146516,1706808645311,-301.77653735,0.00022997,2]
[313146517,1706808645320,-414.95892919,0.00022997,2]
[313146518,1706808645329,-196.87082677,0.00022997,2]
[313146520,1706808645340,-356.8393713,0.00022997,2]
[313146521,1706808645349,-448.05177193,0.00022997,2]
[313146522,1706808645359,-349.7261996,0.00022997,2]
[313146523,1706808645368,-2305.83157254,0.00022997,2]
[313146524,1706808645376,-155.59844655,0.00022997,2]
[313146525,1706808645386,-168.37993501,0.00022997,2]
[313146526,1706808645396,-6348.95972,0.00022997,2]
[313146527,1706808645405,-155.0,0.00022997,2]
[313146528,1706808645416,-501.74130467,0.00022997,2]
[313146529,1706808645427,-76799.93969962,0.00022997,2]
[313146530,1706808645436,-942.03003609,0.00022997,2]
[313146531,1706808645445,-155.65924392,0.00022997,2]
[313146533,1706808645457,-203.12390135,0.00022997,2]
[313146534,1706808645466,-157.19236902,0.00022997,2]
[313146535,1706808645476,-190.97652873,0.00022997,2]
[313146536,1706808645485,-24036.28835478,0.00022997,2]
[313146537,1706808645495,-263.95414554,0.00022998,2]
[313146538,1706808645505,-361.06396576,0.00022998,2]
[313146539,1706808645515,-244.01749982,0.00022998,2]
[313146540,1706808645524,-8565.08058171,0.00022998,2]
[313146541,1706808645533,-7918.47641999,0.00022998,2]
[313146542,1706808645543,-240.30506348,0.00022998,2]
[313146543,1706808645552,-371.06691339,0.00022998,2]
[313146544,1706808645563,-2325.42076986,0.00022999,2]
[313146545,1706808645572,-2754.2862681,0.00022999,2]
[313146546,1706808645581,-353.76039003,0.00022999,2]
[313146547,1706808645590,-155.0,0.00022999,2]
[313146549,1706808645599,-178.19299601,0.00022999,2]
[313146551,1706808645608,-1062.12667326,0.00022999,2]
[313146553,1706808645617,-273.663813,0.00022999,2]
[313146555,1706808645627,-4255.31741538,0.00022999,2]
[313146557,1706808645637,-310.17962013,0.00022999,2]
[313146559,1706808645647,-583.2561244,0.00022999,2]
[313146561,1706808645657,-162.5922843,0.00022999,2]
[313146563,1706808645667,-150.01,0.00022999,2]
[313146565,1706808645677,-3306.75797983,0.00022999,2]
[313146567,1706808645687,-499.99999999,0.00022999,2]
[313146569,1706808645697,-592.0,0.00022999,2]
[313146571,1706808645707,-260757.73435104,0.00022999,3]
[313146573,1706808645723,-792.50513559,0.00022999,3]
[313146574,1706808645735,-695.71,0.00022999,3]
[313146575,1706808645747,-3351.83550421,0.00022999,3]
[313146576,1706808645758,-9146.03947456,0.00022999,3]
[313146577,1706808645770,-3013.54344742,0.00022999,3]
[313146578,1706808645781,-4017.01407568,0.00022999,3]
[313146579,1706808645912,-5432.98107736,0.00022996,2]
[313146580,1706808645922,-500.0,0.00022999,2]
[313146581,1706808645931,-500.0,0.00022999,2]
[313146582,1706808645941,-500.0,0.00022999,2]
[313146583,1706808645950,-163.50576646,0.00022999,2]
[313146585,1706808645960,-500.0,0.00022999,2]
[313146587,1706808645969,-500.0,0.00022999,2]
[313146589,1706808645979,-500.0,0.00022999,2]
[313146591,1706808645988,-159541.9527495,0.00022999,3]
[313146593,1706808645997,-344.06635828,0.00023,3]
[313146595,1706808646006,-266564.99716198,0.00023,2]
[313146598,1706808646017,-3036.72489089,0.00023,2]
[313146600,1706808646028,-418.84953567,0.00023,2]
[313146602,1706808646039,-252.57499936,0.00023,2]
[313146604,1706808646050,-1152.49339999,0.00023,2]
[313146607,1706808646064,-32650.92860337,0.00023,2]
[313146609,1706808646075,-10181.62236793,0.00023,2]
[313146611,1706808646087,-13241.90885032,0.00023,2]
[313146613,1706808646098,-818.77468218,0.00023,2]
[313146615,1706808646109,-2293.05122453,0.00023,2]
[313146619,1706808646131,-5013.57115802,0.00023,2]
[313146621,1706808646142,-2726.04404272,0.00023,2]
[313146623,1706808646153,-1829.741276,0.00023,2]
[313146625,1706808646164,-17130.80177749,0.00023,2]
[313146627,1706808646175,-955708.60229696,0.00023,2]
[313146701,1706808686358,182.7,0.00022203,2]
[313146702,1706808704839,183.74,0.00022137,2]
[313146703,1706808712758,266.17,0.00020193,2]
[313146704,1706808713272,266.17,0.00022457,2]
[313146705,1706808729985,449.3,0.00022205,2]
[313146706,1706808757563,1551.22159309,0.00021847,7]
[313146707,1706808758579,250.0,0.00022047,2]
[313146708,1706808771644,164.49,0.00022198,2]
[313146709,1706808772049,164.49,0.00022363,2]
[313146710,1706808783102,167.29,0.00021878,2]
[313146711,1706808804270,23900.0,0.00021877,2]
[313146712,1706808819384,1410.9,0.00021876,2]
[313146713,1706808830405,150.0,0.00022,2]
[313146714,1706808835176,353.53,0.00022,2]
[313146715,1706808838719,1000.0,0.00022,2]
[313146716,1706808907132,463.89284492,0.00022,2]
[313146717,1706808926887,340.84,0.00021866,2]
[313146718,1706808964229,155.27,0.00021864,2]
[313146722,1706809018176,408.41534683,0.00022442,2]
[313146723,1706809108742,672.0,0.00021836,2]
[313146724,1706809172588,157.62891128,0.0002244,2]
[313146725,1706809185701,164.91,0.00021833,2]
[313146726,1706809230351,1000.0,0.00022441,2]
[313146727,1706809248077,1362.01,0.00021833,2]
[313146728,1706809265670,2129.18167584,0.00021834,2]
[313146729,1706809265695,512.0,0.00021834,2]
[313146730,1706809265718,512.0,0.00021834,2]
[313146731,1706809265741,512.0,0.00021834,2]
[313146732,1706809265765,449.35832416,0.00021834,2]
[313146733,1706809308282,62.64167584,0.00021987,2]
[313146734,1706809308307,100.90832416,0.00021987,2]
[313146735,1706809308512,163.55,0.00022178,2]
[313146736,1706809308751,163.55,0.00022369,2]
[313146737,1706809324476,83.99167584,0.00021894,2]
[313146738,1706809324500,121.00832416,0.00021894,2]
[313146740,1706809345514,256.66,0.00021822,2]
[313146741,1706809346248,134.33167584,0.00022441,2]
[313146742,1706809346272,512.0,0.00022441,2]
[313146743,1706809346296,212.0,0.00022441,2]
[313146744,1706809346319,575.01862416,0.00022441,2]
[313146745,1706809426092,1201.18858696,0.00022468,2]
[313146746,1706809443976,206.0,0.00021894,2]
[313146747,1706809448423,357.36342852,0.00022459,2]
[313146748,1706809466976,150.0,0.00022,2]
[313146749,1706809470595,353.08,0.00022,2]
[313146750,1706809484284,496.77130862,0.00022501,2]
[313146751,1706809484621,250.0,0.00021714,2]
[313146752,1706809486369,1000.0,0.00022441,2]
[313146753,1706809508016,157.62891126,0.00022439,2]
[313146754,1706809511156,66110.637,0.00022441,2]
[313146755,1706809516733,2000.0,0.00021712,2]
[313146756,1706809636749,178.77,0.00021734,2]
[313146757,1706809638804,312.69299992,0.00022459,2]
[313146758,1706809672042,462.4,0.00021712,2]
[313146759,1706809685409,1290.22,0.00021719,2]
[313146760,1706809771148,256.66,0.00021693,2]
[313146761,1706809789622,401.73745732,0.00022501,2]
[313146762,1706809789936,155.0,0.00022501,2]
[313146763,1706809827872,525.57087113,0.00022501,2]
[313146764,1706809831371,218.60895009,0.00022501,2]
[313146782,1706809831719,-212.61312492,0.00022502,2]
[313146783,1706809831729,-2218.83022932,0.00022502,2]
[313146784,1706809831773,-818.99,0.00022502,2]
[313146785,1706809831785,-407.53,0.00022502,2]
[313146786,1706809831831,-1266.89151236,0.00022502,2]
[313146787,1706809831842,-883.0,0.00022505,2]
[313146788,1706809831851,-215.44803519,0.00022516,2]
[313146789,1706809831860,-150.0,0.00022521,2]
[313146790,1706809831870,-150.0,0.0002253,2]
[313146791,1706809831879,-2025.66579831,0.00022531,2]
[313146792,1706809831892,-2805.78287957,0.00022531,2]
[313146793,1706809831904,-4302.67886653,0.00022531,2]
[313146794,1706809831915,-5728.6464099,0.00022531,2]
[313146795,1706809831924,-496.64137415,0.00022539,2]
[313146796,1706809831934,-426.75700914,0.00022539,2]
[313146797,1706809831943,-269.58359667,0.00022539,2]
[313146798,1706809831952,-3350.11903617,0.00022539,4]
[313146799,1706809831962,-155.0,0.00022539,2]
[313146800,1706809831971,-255.11217212,0.00022539,2]
[313146801,1706809831980,-396.53188178,0.00022539,2]
[313146802,1706809831989,-191.36685827,0.00022539,2]
[313146803,1706809831999,-207.37342243,0.00022539,2]
[313146804,1706809832007,-238.51006061,0.00022539,2]
[313146805,1706809832017,-162.69912584,0.00022539,2]
[313146806,1706809832026,-155.3699649,0.00022539,2]
[313146807,1706809832035,-262.22168542,0.00022539,2]
[313146808,1706809832045,-400.0,0.00022539,2]
[313146809,1706809832054,-159.38545617,0.00022539,2]
[313146810,1706809832063,-182.36804262,0.00022539,2]
[313146811,1706809832072,-202.51790807,0.00022539,2]
[313146812,1706809832082,-303.23549832,0.00022539,2]
[313146813,1706809832091,-155.25152899,0.00022539,2]
[313146814,1706809832101,-156.65823984,0.00022539,2]
[313146815,1706809832110,-248.08555624,0.00022539,2]
[313146817,1706809832119,-155.44901312,0.00022539,2]
[313146818,1706809832129,-156.06033092,0.00022539,2]
[313146820,1706809832138,-202.46606729,0.00022539,2]
[313146823,1706809832148,-163.72705546,0.00022539,2]
[313146824,1706809832157,-164.59395117,0.00022539,2]
[313146825,1706809832167,-2639.68606581,0.00022539,2]
[313146826,1706809832175,-160.80738862,0.00022539,2]
[313146828,1706809832185,-155.0,0.00022539,2]
[313146830,1706809832194,-160.88165229,0.00022539,2]
[313146832,1706809832203,-358.52425652,0.00022539,2]
[313146833,1706809832213,-268.80974085,0.00022539,2]
[313146834,1706809832223,-165.86369279,0.00022539,2]
[313146835,1706809832233,-407.19395765,0.00022539,2]
[313146836,1706809832242,-167.46117237,0.00022539,2]
[313146837,1706809832253,-18376.29046026,0.00022539,2]
[313146838,1706809832262,-205.43932251,0.00022539,2]
[313146839,1706809832271,-1060.48756115,0.00022539,2]
[313146840,1706809832280,-190.03228712,0.00022539,2]
[313146841,1706809832290,-428.25697223,0.00022539,2]
[313146842,1706809832299,-156.64964294,0.00022539,2]
[313146843,1706809832308,-1081.98588942,0.0002254,2]
[313146844,1706809832318,-873.90332348,0.0002254,2]
[313146845,1706809832327,-155.0,0.0002254,2]
[313146846,1706809832337,-287.52314544,0.0002254,2]
[313146847,1706809832346,-155.43310874,0.0002254,2]
[313146848,1706809832355,-155.05555706,0.0002254,2]
[313146849,1706809832364,-155.57082611,0.0002254,2]
[313146850,1706809832373,-155.27174667,0.0002254,2]
[313146851,1706809832383,-155.79478725,0.0002254,2]
[313146852,1706809832401,-21639.51630741,0.00022541,2]
[313146853,1706809832417,-1003.29,0.00022541,2]
[313146854,1706809832428,-41222.10508229,0.00022541,2]
[313146855,1706809832440,-297.2375,0.00022541,2]
[313146856,1706809832452,-250.0,0.00022541,2]
[313146857,1706809832472,-3698.8629852,0.00022541,2]
[313146858,1706809832483,-973.32883742,0.00022541,2]
[313146859,1706809832496,-1498.83714,0.00022541,2]
[313146860,1706809832512,-254.21000005,0.00022541,2]
[313146861,1706809832524,-311.08000015,0.00022541,2]
[313146862,1706809832535,-409.47900183,0.00022541,2]
[313146863,1706809832547,-272.72700117,0.00022541,2]
[313146864,1706809832558,-10784.243,0.00022541,2]
[313146865,1706809832569,-865.14657609,0.00022541,2]
[313146866,1706809832583,-1050.64516846,0.00022541,2]
[313146867,1706809832600,-239851.57624594,0.00022541,2]
[313146868,1706809832609,-8242.36,0.00022559,2]
[313146869,1706809832618,-499.99,0.00022559,2]
[313146870,1706809832627,-3367.91,0.00022559,2]
[313146871,1706809832637,-4444.45,0.0002256,2]
[313146872,1706809832646,-163.55,0.0002256,2]
[313146873,1706809832655,-268.05123994,0.0002261,2]
[313146874,1706809832665,-17116.9164,0.00022659,2]
[313146875,1706809832674,-150.0,0.00022727,2]
[313146876,1706809832684,-150.0,0.0002273,2]
[313146877,1706809832693,-150.0,0.00022731,2]
[313146878,1706809832704,-1500.0,0.00022732,2]
[313146879,1706809832714,-150.0,0.00022733,2]
[313146880,1706809832723,-1500.0,0.00022735,2]
[313146881,1706809832929,-150.0,0.00022736,2]
[313146882,1706809832939,-150.0,0.00022743,2]
[313146883,1706809832949,-150.0,0.00022743,2]
[313146884,1706809832958,-150.0,0.00022743,2]
[313146885,1706809832968,-1500.0,0.00022748,2]
[313146886,1706809832978,-150.0,0.00022748,2]
[313146887,1706809832988,-150.0,0.00022749,2]
[313146888,1706809833000,-300.0,0.00022749,2]
[313146889,1706809833013,-150.0,0.0002275,2]
[313146890,1706809833023,-163.55,0.00022751,2]
[313146891,1706809833033,-150.0,0.00022751,2]
[313146892,1706809833043,-150.0,0.00022752,2]
[313146893,1706809833053,-150.0,0.00022755,2]
[313146894,1706809833064,-150.0,0.00022769,2]
[313146895,1706809833074,-150.0,0.00022769,2]
[313146896,1706809833083,-1500.0,0.00022783,2]
[313146897,1706809833093,-1500.0,0.00022786,2]
[313146898,1706809833103,-150.0,0.00022787,2]
[313146899,1706809833112,-228.32754821,0.00022792,2]
[313146900,1706809833122,-150.0,0.00022796,2]
[313146901,1706809833131,-150.0,0.00022797,2]
[313146902,1706809833141,-205.0,0.00022799,2]
[313146903,1706809833151,-184.96227971,0.00022808,2]